fUST/lending_fUST_20240101
["ID","MTS","AMOUNT","RATE_DAILY","PERIOD"]
[309751631,1704075032584,-210.06214,0.00026301,2]
[309751632,1704075032593,-200.0,0.0002663,15]
[309751633,1704075032602,-5269.31647866,0.00026998,2]
[309751634,1704075032611,-151.0,0.00027,2]
[309751635,1704075032621,-210.06214,0.00027275,2]
[309751636,1704075032630,-500.0,0.00027396,4]
[309751637,1704075032639,-500.0,0.00027396,4]
[309751638,1704075032649,-500.0,0.00027396,4]
[309751639,1704075032658,-389.44495079,0.00027396,4]
[309751640,1704075032667,-500.0,0.00027396,2]
[309751641,1704075032677,-500.0,0.00027396,2]
[309751642,1704075032686,-651.05683145,0.00027396,2]
[309751643,1704075032695,-2546.99337017,0.00027997,2]
[309751644,1704075032705,-593.17705824,0.00027998,2]
[309751645,1704075032715,-762.06708544,0.00027998,2]
[309751646,1704075032725,-210.06214,0.00028248,2]
[309751647,1704075032734,-169.618654,0.00028391,2]
[309751648,1704075032743,-151.0,0.00028821,2]
[309751649,1704075032752,-158.0,0.00028821,2]
[309751650,1704075032761,-3987.77784479,0.00029098,5]
[309751651,1704075032771,-210.06214,0.00029221,2]
[309751652,1704075032780,-280.0,0.00029293,15]
[309751653,1704075032791,-151.0,0.00029349,2]
[309751654,1704075032801,-1493.49113191,0.00029349,2]
[309751655,1704075032811,-2567.87733819,0.00029398,2]
[309751656,1704075032822,-151.0,0.00029398,2]
[309751657,1704075032831,-758.56,0.00029989,3]
[309751658,1704075032840,-632.13,0.00029989,3]
[309751659,1704075032849,-151.0,0.0002999,2]
[309751660,1704075032858,-910.27,0.0002999,3]
[309751661,1704075032868,-1573.77393442,0.00029998,2]
[309751662,1704075032877,-629.76953277,0.00029998,2]
[309751663,1704075032886,-726.07199335,0.00029998,2]
[309751664,1704075032895,-3835.1023978,0.00029998,2]
[309751665,1704075032904,-271.23980167,0.00029998,2]
[309751666,1704075032914,-154.84515485,0.00029998,2]
[309751667,1704075032923,-154.84515485,0.00029998,2]
[309751668,1704075032932,-154.85628438,0.00029998,2]
[309751669,1704075032941,-154.84515485,0.00029998,2]
[309751670,1704075032950,-154.84515485,0.00029998,2]
[309751671,1704075032960,-160.77460358,0.00029998,2]
[309751672,1704075032969,-156.4879061,0.00029998,2]
[309751673,1704075032979,-166.18669559,0.00029998,2]
[309751674,1704075032988,-171.1336958,0.00029998,2]
[309751675,1704075032997,-1036.76475812,0.00029998,2]
[309751676,1704075033006,-311.0029673,0.00029998,2]
[309751677,1704075033016,-155.10852942,0.00029998,2]
[309751678,1704075033025,-183.35886247,0.00029998,2]
[309751679,1704075033035,-2935.60830743,0.00029998,2]
[309751680,1704075033045,-154.97410904,0.00029998,2]
[309751681,1704075033055,-581.84901664,0.00029998,2]
[309751682,1704075033064,-2554.41464955,0.00029998,2]
[309751683,1704075033075,-424.90536528,0.00029998,2]
[309751684,1704075033086,-417.26693579,0.00029998,2]
[309751685,1704075033095,-833.42562403,0.00029998,2]
[309751686,1704075033105,-164.7731484,0.00029998,2]
[309751687,1704075033114,-184.84867995,0.00029998,2]
[309751688,1704075033124,-155.56891265,0.00029998,2]
[309751689,1704075033134,-155.48586566,0.00029998,2]
[309751690,1704075033143,-155.325134,0.00029998,2]
[309751691,1704075033155,-155.12027472,0.00029998,2]
[309751692,1704075033164,-157.37719774,0.00029998,2]
[309751693,1704075033174,-168.28148034,0.00029998,2]
[309751694,1704075033183,-196.98170487,0.00029998,2]
[309751695,1704075033194,-7686.55089652,0.00029998,2]
[309751696,1704075033204,-224.28316937,0.00029998,2]
[309751697,1704075033215,-171.39674606,0.00029998,2]
[309751698,1704075033224,-151.0,0.00029998,2]
[309751699,1704075033235,-151.0,0.00029998,2]
[309751700,1704075033245,-151.0,0.00029998,2]
[309751701,1704075033255,-205.491574,0.00029998,2]
[309751702,1704075033265,-745.45067344,0.00029999,2]
[309751703,1704075033278,-970.61630042,0.00029999,2]
[309751704,1704075033288,-6024.11518248,0.0003,2]
[309751847,1704075043460,-851.81467386,0.00021759,2]
[309751849,1704075043470,-154.86062544,0.00021759,4]
[309751851,1704075043479,-500.0,0.00027396,2]
[309751853,1704075043488,-3465.83608671,0.0003,2]
[309752026,1704076238933,-1299.49551721,0.00024198,2]
[309752231,1704077441108,-1959.83971041,0.0002116,2]
[309752250,1704077479562,245.61606084,0.0001906,2]
[309752251,1704077508083,154.84515485,0.0001906,2]
[309752252,1704077510645,545.71535662,0.0001906,2]
[309752254,1704077513797,4410.31213089,0.0001906,2]
[309752255,1704077521770,1326.95273698,0.0001906,2]
[309752256,1704077524082,199.09898802,0.0001906,2]
[309752257,1704077526802,154.84515485,0.0001906,2]
[309752258,1704077528645,545.71535662,0.0001906,2]
[309752259,1704077529807,2995.47106705,0.0001906,2]
[309752260,1704077537765,1326.95273698,0.0001906,2]
[309752261,1704077538800,223.64817373,0.0001906,2]
[309752262,1704077546648,155.56571325,0.0001906,2]
[309752263,1704077547052,685.29684082,0.0001906,2]
[309752264,1704077554440,154.84515485,0.0001906,2]
[309752265,1704077555849,1326.95273698,0.0001906,2]
[309752266,1704077561334,7928.30997934,0.00019059,2]
[309752267,1704077565051,685.29684082,0.0001906,2]
[309752268,1704077568426,154.84515485,0.0001906,2]
[309752269,1704077575774,1202.1296076,0.0001906,2]
[309752270,1704077581049,465.88542648,0.0001906,2]
[309752271,1704077588432,297.80328889,0.0001906,2]
[309752274,1704077732598,215.08207038,0.0002,2]
[309752275,1704078080871,163.74404056,0.000189,2]
[309752277,1704078329354,328.14293882,0.00021,2]
[309752294,1704078628505,292.7603235,0.00020607,2]
[309752312,1704078632100,-154.84515485,0.00021001,4]
[309752313,1704078632110,-430.0265757,0.00021002,2]
[309752314,1704078632120,-272.561493,0.0002106,2]
[309752315,1704078632131,-24900.0,0.00021212,2]
[309752316,1704078632140,-166.666666,0.00021918,2]
[309752317,1704078632149,-156.51769097,0.00022,2]
[309752318,1704078632158,-4906.45463586,0.00022,2]
[309752319,1704078632168,-166.666666,0.00022431,2]
[309752320,1704078632178,-166.666666,0.00022944,2]
[309752321,1704078632187,-200.0,0.00023332,7]
[309752322,1704078632196,-166.666666,0.00023456,2]
[309752323,1704078632206,-163.74404056,0.000239,2]
[309752324,1704078632215,-166.666666,0.00023969,2]
[309752325,1704078632225,-9896.05802049,0.00024197,2]
[309752326,1704078632234,-10295.14724389,0.00024198,2]
[309752327,1704078632243,-300.0,0.00024198,2]
[309752328,1704078632252,-639.92358154,0.00024198,2]
[309752329,1704078632262,-1685.71021882,0.00024198,2]
[309752330,1704078632271,-3219.67517948,0.00024198,2]
[309752331,1704078632280,-508.63291032,0.0002421,5]
[309752332,1704078632291,-166.666666,0.00024482,2]
[309752333,1704078632301,-2479.78133963,0.00025,2]
[309752334,1704078632311,-280.0,0.00025665,7]
[309752335,1704078632320,-493.91315889,0.00026301,2]
[309752336,1704078632333,-1155.26164411,0.00026301,2]
[309752337,1704078632344,-1179.10029961,0.00027,2]
[309752390,1704078638312,-1367.89307056,0.00027,2]
[309752402,1704078638417,-1649.174803,0.00027275,2]
[309752404,1704078638429,-306.9157721,0.00027342,2]
[309752406,1704078638438,-391.0,0.00028231,15]
[309752408,1704078638450,-1649.174803,0.00028248,2]
[309752410,1704078638460,-163.74404056,0.000289,2]
[309752412,1704078638469,-358.79,0.00028987,3]
[309752414,1704078638480,-156.83772087,0.00028997,2]
[309752416,1704078638489,-273.92476869,0.00028998,2]
[309752418,1704078638498,-980.35941257,0.00028998,2]
[309752447,1704078643088,-212.52935547,0.00026999,2]
[309752448,1704078643099,-2810.80637752,0.00028998,2]
[309753260,1704080673589,2348.4939649,0.00020608,2]
[309753261,1704080722565,272.561493,0.00020563,2]
[309753262,1704080763734,24900.0,0.00020882,2]
[309753269,1704080854948,155.97568398,0.00020882,2]
[309753270,1704080869941,1367.90293804,0.00020882,2]
[309753828,1704081043480,-158.84299488,0.00021213,2]
[309753830,1704081043489,-1944.58932329,0.00021312,2]
[309753832,1704081043502,-81.58524162,0.00021312,2]
[309753834,1704081043511,-154.84515485,0.00021313,4]
[309753836,1704081043521,-154.84515485,0.00021313,2]
[309753838,1704081043530,-851.81467386,0.00021314,2]
[309753840,1704081043539,-1575.4438656,0.00021314,2]
[309753842,1704081043548,-943.79443279,0.00021315,2]
[309753844,1704081043557,-1262.45083956,0.00021316,2]
[309753846,1704081043567,-545.56884391,0.00021324,2]
[309754683,1704081052598,522.4035297,0.00020882,2]
[309755081,1704081056781,18831.63477527,0.00020882,2]
[309755085,1704081062358,1520.63978358,0.00020882,2]
[309755086,1704081062544,618.18368057,0.00020882,2]
[309755087,1704081062779,399.75701151,0.00020882,2]
[309755088,1704081068688,2074.80218576,0.00020882,2]
[309755096,1704081072562,181.16611692,0.00020882,2]
[309755097,1704081072768,2414.0033386,0.00020882,2]
[309755098,1704081078526,214.92082696,0.00020882,2]
[309755099,1704081082378,522.01886558,0.00020882,2]
[309755100,1704081084679,712.22693878,0.00020882,2]
[309755104,1704081264078,1041.05089863,0.00021,2]
[309755105,1704081329377,150.0,0.00019212,2]
[309755106,1704081598767,175.0,0.00035616,120]
[309755107,1704081766994,18199.0777964,0.00020411,2]
[309755108,1704081845901,190.0,0.00035616,120]
[309755109,1704081881244,-154.84515485,0.00021161,2]
[309755110,1704081881355,-264.38657848,0.00021162,2]
[309755111,1704081881385,-559.40932026,0.00021162,2]
[309755112,1704081881408,-1421.35894641,0.00021163,2]
[309755113,1704081906533,-943.79443279,0.0002116,2]
[309755114,1704081906556,-154.84515485,0.0002116,4]
[309755115,1704081906577,-446.36041236,0.00021161,2]
[309755116,1704081930496,150.0,0.00019212,2]
[309755168,1704082232534,-154.84515485,0.00021197,4]
[309755169,1704082232546,-1192.67954323,0.00021198,2]
[309755170,1704082232559,-1575.4438656,0.00021199,2]
[309755171,1704082232570,-974.23467953,0.000212,2]
[309755172,1704082232581,-154.84515485,0.00021202,2]
[309755174,1704082232593,-6558.60382738,0.0002121,2]
[309755176,1704082232605,-1624.01726485,0.00021324,2]
[309755189,1704082232729,-477.96979678,0.00021445,2]
[309755191,1704082232739,-166.666666,0.00021918,2]
[309755193,1704082232749,-4906.45463586,0.00022,2]
[309755195,1704082232758,-156.51769097,0.00022,2]
[309755196,1704082232767,-166.666666,0.00022431,2]
[309755198,1704082232776,-177.060285,0.00022694,2]
[309755200,1704082232785,-166.666666,0.00022944,2]
[309755201,1704082232794,-151.0,0.00023,2]
[309755202,1704082232803,-9896.05802049,0.00023,2]
[309755203,1704082232813,-200.0,0.0002333,7]
[309755204,1704082232822,-166.666666,0.00023456,2]
[309755205,1704082232831,-166.666666,0.00023969,2]
[309755206,1704082232840,-7166.13800009,0.0002399,2]
[309755207,1704082232850,-1037.00033896,0.00024,2]
[309755208,1704082232859,-166.666666,0.00024482,2]
[309755209,1704082232868,-200.0,0.00024658,15]
[309755210,1704082232878,-151.0,0.00024836,2]
[309755211,1704082232887,-3899.13416274,0.00024837,2]
[309755212,1704082232896,-280.0,0.00025663,7]
[309755213,1704082232905,-712.185456,0.00026301,2]
[309755214,1704082232914,-1737.71362764,0.00027,2]
[309755294,1704082241706,-615.76189004,0.00027,2]
[309755296,1704082241715,-151.0,0.00027273,2]
[309755297,1704082241734,-1246.08069349,0.00027274,2]
[309755298,1704082241762,-1300.91267668,0.00027274,2]
[309755299,1704082241772,-348.30732332,0.00027275,2]
[309755308,1704082243580,-363.87813268,0.00027275,2]
[309755309,1704082243590,-895.94439503,0.00027548,2]
[309755310,1704082243599,-1691.8274723,0.00027998,2]
[309755311,1704082243989,-3693.44596547,0.00027998,2]
[309755312,1704082243999,-151.0,0.00027998,2]
[309755313,1704082244011,-2324.78171187,0.00028128,5]
[309755314,1704082244023,-391.0,0.00028229,15]
[309755315,1704082244032,-712.185456,0.00028248,2]
[309755316,1704082244042,-2580.14242679,0.00028418,2]
[309755317,1704082244052,-150.215497,0.000289,2]
[309755318,1704082244061,-156.83772087,0.000289,2]
[309755319,1704082244071,-1084.68,0.00028988,3]
[309755320,1704082244081,-903.9,0.00028988,3]
[309755321,1704082244091,-155.56891265,0.00028997,2]
[309755322,1704082244101,-246.36299273,0.00028998,2]
[309755323,1704082244111,-668.04588414,0.00028998,2]
[309755324,1704082244120,-155.55276434,0.00028998,2]
[309755325,1704082244130,-305.61228515,0.00028998,2]
[309755326,1704082244139,-13700.88694863,0.00028998,2]
[309755327,1704082244151,-195.91892388,0.00028998,2]
[309755328,1704082244161,-633.64023944,0.00028998,2]
[309755329,1704082244172,-728.10757982,0.00028998,2]
[309755330,1704082244182,-505.84515485,0.00028998,4]
[309755331,1704082244192,-272.18420681,0.00028998,2]
[309755332,1704082244202,-155.03760844,0.00028998,2]
[309755333,1704082244211,-155.42294745,0.00028998,2]
[309755334,1704082244221,-154.84515485,0.00028998,2]
[309755335,1704082244230,-155.31278218,0.00028998,2]
[309755336,1704082244239,-155.58059288,0.00028998,2]
[309755337,1704082244248,-161.28055759,0.00028998,2]
[309755338,1704082244258,-166.75305459,0.00028998,2]
[309755339,1704082244268,-171.62927434,0.00028998,2]
[309755340,1704082244277,-312.40740057,0.00028998,2]
[309755341,1704082244287,-155.10852942,0.00028998,2]
[309755342,1704082244296,-154.97410904,0.00028998,2]
[309755343,1704082244305,-2554.41464955,0.00028998,2]
[309755344,1704082244315,-417.26693579,0.00028998,2]
[309755345,1704082244324,-833.42562403,0.00028998,2]
[309755346,1704082244333,-164.7731484,0.00028998,2]
[309755347,1704082244343,-184.84867995,0.00028998,2]
[309755348,1704082244352,-612.63451172,0.00028998,2]
[309755349,1704082244361,-448.09209354,0.00028998,2]
[309755350,1704082244370,-186.75580642,0.00028998,2]
[309755351,1704082244379,-1867.66731655,0.00028998,2]
[309755352,1704082244389,-749.63689959,0.00028998,2]
[309755353,1704082244398,-155.26717829,0.00028998,2]
[309755354,1704082244406,-7502.18396418,0.00028998,2]
[309755355,1704082244415,-155.48586566,0.00028998,2]
[309755356,1704082244424,-155.325134,0.00028998,2]
[309755357,1704082244433,-155.12027472,0.00028998,2]
[309755358,1704082244442,-157.39127647,0.00028998,2]
[309755359,1704082244451,-196.98170487,0.00028998,2]
[309755360,1704082244461,-224.28316937,0.00028998,2]
[309755361,1704082244470,-168.28148034,0.00028998,2]
[309755362,1704082244478,-273.99692744,0.00028998,2]
[309755363,1704082244487,-518.06490912,0.00028998,2]
[309755364,1704082244497,-580.9554363,0.00028998,2]
[309755365,1704082244506,-171.39674606,0.00028998,2]
[309755366,1704082244515,-242.57432614,0.00028998,2]
[309755367,1704082244524,-500.0,0.00028998,2]
[309755368,1704082244534,-501.54365902,0.00028998,2]
[309755369,1704082244543,-500.0,0.00028998,2]
[309755370,1704082244552,-490.63409887,0.00028998,2]
[309755371,1704082244561,-151.0,0.00028998,2]
[309755372,1704082244570,-151.0,0.00028998,2]
[309755373,1704082244579,-151.0,0.00028998,2]
[309755374,1704082244588,-151.0,0.00028998,2]
[309755375,1704082244597,-151.0,0.00028998,2]
[309755376,1704082244606,-157.942818,0.00028999,2]
[309755377,1704082244615,-970.61630042,0.00028999,2]
[309755378,1704082244625,-25031.79872464,0.00028999,2]
[309755379,1704082244636,-50243.1390551,0.00029,2]
[309755380,1704082244647,-155.0,0.00029,2]
[309755381,1704082244656,-1493.49113191,0.00029,2]
[309755382,1704082244666,-712.185456,0.00029221,2]
[309755383,1704082244677,-200.0,0.000294,4]
[309755384,1704082244687,-155.99791045,0.00029968,2]
[309755385,1704082244696,-361.9674842,0.00029998,2]
[309755386,1704082244705,-155.121935,0.00029998,2]
[309755387,1704082244715,-303.0984505,0.00029998,2]
[309755388,1704082244725,-239.70979785,0.00029998,2]
[309755389,1704082244735,-614.87155117,0.00029998,2]
[309755390,1704082244746,-514.41395729,0.00029999,2]
[309755391,1704082244757,-863.80897508,0.00029999,2]
[309755392,1704082244767,-500.0,0.00029999,4]
[309755393,1704082244779,-500.0,0.00029999,4]
[309755394,1704082244788,-500.0,0.00029999,4]
[309755395,1704082244798,-230.72913034,0.00029999,4]
[309755396,1704082244808,-42416.7552756,0.0003,2]
[309755397,1704082244818,-154.84515485,0.0003,2]
[309755398,1704082244830,-7018.09266231,0.0003,4]
[309755399,1704082244841,-346.47877531,0.0003,4]
[309755400,1704082244851,-637.92610129,0.0003,4]
[309755401,1704082244861,-2840.51705271,0.0003,2]
[309755402,1704082244870,-154.99054539,0.0003,4]
[309755403,1704082244881,-5494.98343976,0.0003,2]
[309755404,1704082244890,-154.86062544,0.0003,14]
[309755405,1704082244900,-1200.0,0.0003,4]
[309755406,1704082244910,-500.0,0.0003,2]
[309755407,1704082244921,-500.0,0.0003,2]
[309755408,1704082244930,-500.0,0.0003,2]
[309755409,1704082244939,-500.0,0.0003,2]
[309755410,1704082244949,-580.12782928,0.0003,2]
[309755411,1704082244958,-232.0,0.0003,2]
[309755412,1704082244967,-712.185456,0.00030194,2]
[309755413,1704082244976,-155.0,0.0003037,2]
[309755414,1704082244985,-156.28773871,0.0003174,2]
[309755415,1704082244994,-984.26645117,0.00032,2]
[309755416,1704082245003,-500.0,0.00032876,7]
[309755417,1704082245012,-298.04684776,0.00032876,7]
[309755418,1704082245021,-500.0,0.00032876,7]
[309755419,1704082245031,-300.92619541,0.00032876,7]
[309755420,1704082245040,-500.0,0.00032876,7]
[309755421,1704082245049,-617.97557415,0.00032876,7]
[309755422,1704082245059,-205.039416,0.00032877,2]
[309755423,1704082245068,-2673.30441181,0.00033,4]
[309755424,1704082245157,-28150.0,0.00033,2]
[309755425,1704082245167,-232.0,0.00033,2]
[309755426,1704082245177,-232.0,0.00033,2]
[309755427,1704082245187,-307.925831,0.00033288,2]
[309755428,1704082245197,-175.0,0.00033339,2]
[309755429,1704082245206,-211.8431093,0.00033339,2]
[309755430,1704082245215,-847.38472864,0.00033339,2]
[309755431,1704082245223,-201.3166342,0.0003338,2]
[309755432,1704082245233,-1000.0,0.0003338,10]
[309755433,1704082245242,-1000.0,0.00033392,10]
[309755434,1704082245251,-454.87303876,0.00033392,2]
[309755435,1704082245260,-283.78074239,0.00033392,2]
[309755436,1704082245269,-402.56410457,0.00034,2]
[309755437,1704082245279,-1000.0,0.00034,7]
[309755438,1704082245288,-5000.0,0.00034356,7]
[309755439,1704082245298,-5000.0,0.00034356,7]
[309755440,1704082245306,-5000.0,0.00034356,7]
[309755441,1704082245316,-155.055739,0.00034529,3]
[309755442,1704082245324,-5000.0,0.00034597,7]
[309755443,1704082245334,-5000.0,0.00034597,7]
[309755444,1704082245343,-5000.0,0.00034597,7]
[309755445,1704082245352,-172.83925,0.00034795,2]
[309755446,1704082245361,-153.0,0.00034795,2]
[309755447,1704082245371,-665.95736759,0.0003496,5]
[309755448,1704082245380,-13360.07444524,0.00035,4]
[309755449,1704082245390,-5446.17196634,0.00035,7]
[309755450,1704082245399,-155.37813814,0.00035,4]
[309755451,1704082245409,-13504.9794952,0.00035,4]
[309755452,1704082245418,-205.03392495,0.000355,14]
[309755453,1704082245427,-3534.23824979,0.00035615,2]
[309755454,1704082245436,-4558.0633009,0.00035616,4]
[309755455,1704082245446,-408.84089293,0.00035616,2]
[309755456,1704082245455,-4031.02093131,0.00035616,4]
[309755457,1704082245464,-1023.89051787,0.00035616,2]
[309755458,1704082245473,-193.615619,0.00035616,120]
[309755459,1704082245483,-3984.89600628,0.00036,4]
[309755460,1704082245492,-10000.0,0.00036,2]
[309755461,1704082245501,-5138.60636714,0.00036,2]
[309755462,1704082245511,-232.0,0.00036,2]
[309755463,1704082245521,-232.0,0.00036,2]
[309755464,1704082245530,-150.84915085,0.00036282,4]
[309755465,1704082245540,-150.84915085,0.00037022,2]
[309755466,1704082245549,-500.0,0.00038,2]
[309755467,1704082245559,-1795.55034842,0.00038,30]
[309755468,1704082245568,-10000.0,0.00038,3]
[309755469,1704082245578,-306.0833506,0.00038082,2]
[309755470,1704082245588,-153.0,0.00038082,2]
[309755471,1704082245598,-153.0,0.00038082,2]
[309755472,1704082245608,-153.0,0.00038082,2]
[309755473,1704082245618,-153.0,0.00038082,2]
[309755474,1704082245628,-153.0,0.00038082,2]
[309755475,1704082245641,-153.0,0.00038082,2]
[309755476,1704082245652,-153.0,0.00038082,2]
[309755477,1704082245662,-153.0,0.00038082,2]
[309755478,1704082245671,-153.0,0.00038082,2]
[309755479,1704082245681,-153.0,0.00038082,2]
[309755480,1704082245690,-153.0,0.00038082,2]
[309755481,1704082245699,-153.0,0.00038082,2]
[309755482,1704082245708,-153.0,0.00038082,2]
[309755483,1704082245718,-153.0,0.00038082,2]
[309755484,1704082245727,-204.1381133,0.00038082,2]
[309755485,1704082245737,-2005.94470138,0.00038161,2]
[309755486,1704082245746,-500.0,0.00038356,2]
[309755487,1704082245755,-1270.53926394,0.00038618,2]
[309755488,1704082245765,-341.0,0.00038685,2]
[309755489,1704082245775,-2381.8274805,0.0003896,4]
[309755490,1704082245785,-232.0,0.00039,2]
[309755491,1704082245795,-160.0,0.00039273,3]
[309755492,1704082245804,-165.82,0.0003928,60]
[309755493,1704082245814,-150.02,0.0003929,7]
[309755494,1704082245824,-150.0,0.0003929,60]
[309755495,1704082245834,-167.04810078,0.00039448,2]
[309755496,1704082245843,-244.57169986,0.0003945,4]
[309755497,1704082245853,-500.0,0.00039574,7]
[309755498,1704082245863,-1000.0,0.0003958,10]
[309755499,1704082245873,-500.0,0.00039584,7]
[309755500,1704082245884,-500.0,0.00039594,7]
[309755501,1704082245894,-6465.47671012,0.000397,2]
[309755502,1704082245905,-5000.0,0.000397,7]
[309755503,1704082245915,-17691.55287292,0.000397,2]
[309755504,1704082245925,-5000.0,0.000397,7]
[309755505,1704082245935,-4320.2163762,0.000397,2]
[309755506,1704082245944,-5000.0,0.000397,7]
[309755507,1704082245953,-2324.36310656,0.000397,2]
[309755508,1704082245962,-5000.0,0.000397,7]
[309755509,1704082245972,-3181.16770751,0.000397,2]
[309755510,1704082245981,-2369.36504906,0.000397,2]
[309755511,1704082245990,-153.0,0.00039726,2]
[309755512,1704082245999,-153.0,0.00039726,2]
[309755513,1704082246009,-153.0,0.00039726,2]
[309755514,1704082246018,-153.0,0.00039726,2]
[309755515,1704082246027,-153.0,0.00039726,2]
[309755516,1704082246036,-153.0,0.00039726,2]
[309755517,1704082246046,-153.0,0.00039726,2]
[309755518,1704082246055,-153.0,0.00039726,2]
[309755519,1704082246065,-153.0,0.00039726,2]
[309755520,1704082246074,-153.0,0.00039726,2]
[309755521,1704082246083,-153.0,0.00039726,2]
[309755522,1704082246094,-153.0,0.00039726,2]
[309755523,1704082246106,-153.0,0.00039726,2]
[309755524,1704082246115,-153.0,0.00039726,2]
[309755526,1704082246126,-623.23533875,0.00039958,4]
[309755528,1704082246135,-199.431428,0.00039961,2]
[309755530,1704082246146,-456.472441,0.00039961,2]
[309755532,1704082246156,-45918.95397,0.00039989,4]
[309755533,1704082246166,-4028.0480772,0.0003999,4]
[309755534,1704082246175,-301.28752928,0.00039998,4]
[309755535,1704082246186,-5622.12721188,0.0004,30]
[309755536,1704082246195,-1277.15040759,0.0004,4]
[309755537,1704082246205,-989.35771238,0.0004,2]
[309755538,1704082246214,-21038.06185505,0.0004,4]
[309755582,1704082482054,153.71706325,0.0001,2]
[309755632,1704083437990,-154.84515485,0.00026098,4]
[309755633,1704083437999,-676.5581049,0.00028964,2]
[309755635,1704083438066,-1168.7471197,0.00028964,2]
[309755637,1704083438077,-8050.75279589,0.00028964,2]
[309755638,1704083438087,-2546.99337017,0.00028965,2]
[309755640,1704083438096,-4906.45463586,0.00028966,2]
[309755641,1704083438106,-881.46741958,0.00028998,2]
[309755642,1704083438116,-157.00002287,0.00028998,2]
[309755643,1704083438125,-201.04,0.000293,4]
[309755644,1704083438135,-2147.48456265,0.0003,2]
[309755645,1704083438144,-5678.22718996,0.0003,4]
[309755655,1704083442853,-580.61011786,0.0003,4]
[309755692,1704083445315,-761.54109434,0.0003,4]
[309755693,1704083445325,-638.08762863,0.0003,4]
[309755694,1704083445335,-200.0,0.00031865,15]
[309755695,1704083445345,-872.62919376,0.00032865,4]
[309755758,1704084634637,-154.84515485,0.00027395,4]
[309755759,1704084634646,-213.19008071,0.00027396,4]
[309755836,1704084643091,-286.80991929,0.00027396,4]
[309755838,1704084643102,-365.84812589,0.00027396,4]
[309755906,1704084862582,405.50526982,0.00022,2]
[309756127,1704085846241,-154.84515485,0.00025295,4]
[309756129,1704085846251,-160.77096713,0.00025296,2]
[309756131,1704085846260,-943.51878642,0.00027389,2]
[309756144,1704085958751,292.32074496,0.00022,4]
[309756145,1704085974754,292.32074496,0.00022,4]
[309756146,1704085992736,292.32074496,0.00022,4]
[309756147,1704086010734,292.32074496,0.00022,4]
[309756148,1704086030990,292.32074496,0.00022,4]
[309756149,1704086048741,292.32074496,0.00022,4]
[309756150,1704086066745,373.9432315,0.00022,4]
[309756151,1704086167002,1737.71362764,0.00022,2]
[309756152,1704086363326,190.0,0.00035616,120]
[309757249,1704087092914,292.32074496,0.00022,4]
[309757250,1704087106968,268.49290556,0.00022,4]
[309757251,1704087154136,3205.77945367,0.00022,2]
[309757252,1704087170151,3205.77945367,0.00022,2]
[309757253,1704087188139,3205.77945367,0.00022,2]
[309757254,1704087204307,3205.77945367,0.00022,2]
[309757255,1704087222139,1763.110497,0.00022,2]
[309757257,1704087343948,163.85311304,0.000199,2]
[309757260,1704087945290,150.0,0.000199,2]
[309757279,1704088232510,-154.86062544,0.00023605,4]
[309757280,1704088232521,-451.75689042,0.00023605,2]
[309757281,1704088232564,-1001.02977756,0.00023605,2]
[309757322,1704088238799,-224.95091245,0.00023605,2]
[309757324,1704088238808,-168.03575549,0.00023606,7]
[309757326,1704088238818,-166.666666,0.00023606,2]
[309757328,1704088238826,-250.0,0.00023762,2]
[309757330,1704088238835,-264.0011597,0.00023878,2]
[309757331,1704088238845,-166.666666,0.0002425,2]
[309757333,1704088238854,-1331.5220966,0.00024276,2]
[309757335,1704088238863,-453.525482,0.00024277,2]
[309757337,1704088238872,-4174.9541015,0.00024318,2]
[309757339,1704088238881,-166.666666,0.00024893,2]
[309757341,1704088238890,-150.0,0.000249,2]
[309757343,1704088238899,-2479.78133963,0.00025,2]